Cogmind - Beta 9.6 @@@ ROGUE MODE // 2020.08.10 @ 20:35:02 Player: Plexion Result: Self-destructed Performance ------------- Evolutions (1) 500 Regions Visited (5) 1000 Robots Destroyed (65) 325 Value Destroyed (1166) 1166 Prototype IDs (25) 500 Alien Tech Used (0) 0 Bonus (319) 319 TOTAL SCORE: 3810 Bonus ------- High Alert Combat Kills 19 Aligned with FarCom 300 Cogmind --------- Core Integrity 216/400 Matter 206/300 Energy 250/250 System Corruption 0% Temperature Cool (0) Movement Rolling (95) Ox1 Location -9/Exiles Parts ------- > --- POWER (1) -------- Ion Engine > --- PROPULSION (2) --- Wheel Armored Wheel > --- UTILITY (4) ------ Heat Sink Large Storage Unit Large Storage Unit > --- WEAPON (2) ------- Assault Rifle Heavy Assault Rifle > --- INVENTORY (16) --- Ion Engine Improved Ion Engine Wheel Wheel Wheel Compact Wheel Medium Storage Unit Large Storage Unit Small Laser Particle Cannon YOLO Cannon Shotgun Rocket Launcher Mini Grenade Launcher Plasma Cutter Peak State ------------ > --- POWER ------------ Improved Ion Engine > --- PROPULSION ------- Wheel Wheel > --- UTILITY ---------- Improved Heat Sink Large Storage Unit Large Storage Unit > --- WEAPON ----------- Heavy Assault Rifle Shotgun > --- INVENTORY -------- Wheel Wheel Wheel Wheel Wheel Wheel Compact Wheel Medium Storage Unit Large Storage Unit Small Laser Particle Cannon Assault Rifle Assault Rifle Mini Grenade Launcher [Rating: 14] Favorites ----------- Power Ion Engine Engine Ion Engine Propulsion Wheel Wheel Wheel Utility Large Storage Unit Device Heat Sink Storage Large Storage Unit Weapon Assault Rifle Energy Gun Medium Laser Ballistic Gun Assault Rifle Launcher Mini Grenade Launcher Build | -11 -10 -10 -9 -9 -9 ------- Run | Scr Mat Min Mat Min Exi Slots Evolved 2 | . . . 2 . . Power . | . . . . . . Propulsion . | . . . . . . Utility 2 | . . . 2 . . Weapon . | . . . . . . Parts Attached 48 | 8 10 4 22 3 1 Power 5 | 1 . 1 3 . . Engine 5 | 1 . 1 3 . . Core . | . . . . . . Reactor . | . . . . . . Propulsion 13 | 3 1 1 8 . . Treads . | . . . . . . Leg . | . . . . . . Wheel 13 | 3 1 1 8 . . Hover . | . . . . . . Flight . | . . . . . . Utility 8 | 1 4 . 3 . . Device 4 | . 1 . 3 . . Storage 4 | 1 3 . . . . Processor . | . . . . . . Hackware . | . . . . . . Protection . | . . . . . . Artifact . | . . . . . . Weapon 22 | 3 5 2 8 3 1 Energy Gun 3 | 2 1 . . . . Energy Cannon . | . . . . . . Ballistic Gun 14 | 1 3 1 7 1 1 Ballistic Cannon . | . . . . . . Launcher 5 | . 1 1 1 2 . Special Weapon . | . . . . . . Impact Weapon . | . . . . . . Slashing Weapon . | . . . . . . Piercing Weapon . | . . . . . . Special Melee Weapon . | . . . . . . Unidentified Prototypes 1 | . 1 . . . . Parts Lost 11 | . . 2 7 2 . Power 3 | . . 1 2 . . Propulsion 4 | . . 1 3 . . Utility 2 | . . . 1 1 . Weapon 2 | . . . 1 1 . Highest Loss Streak 4 | . . 2 4 1 . Average Slot Usage (%) 92 | . 95 100 88 94 88 Engine 11 | . 14 14 10 11 11 Wheel 23 | . 28 28 22 22 22 Device 11 | . 7 . 11 17 11 Storage 20 | . 15 28 22 22 22 Ballistic Gun 20 | . 25 18 21 13 21 Launcher 2 | . . 9 . 8 . Naked Turns . | . . . . . . Heaviest Build 46 | 13 41 41 46 44 43 Greatest Support 26 | 26 26 26 26 22 22 Greatest Overweight (x) 2 | . 1 1 2 1 1 Average Overweight (x) . | . . 1 1 1 1 Largest Inventory Capacity 16 | 6 16 16 16 16 16 Average Capacity 13 | 5 7 16 16 16 16 Most Carried 16 | 6 10 10 15 15 16 Average Carried 11 | 2 6 9 13 14 15 Final Capacity 16 | 6 16 16 16 16 16 Final Carried 16 | 6 10 8 15 15 16 Class Distribution -------------------- 64% | Mutant 35% | Scavenger-Mutant Dominant Class ---------------- Mutant | -10/Materials Mutant | -10/Mines Mutant | -9/Materials Scavenger-Mutant | -9/Mines Scavenger-Mutant | -9/Exiles Resources | -11 -10 -10 -9 -9 -9 ----------- Run | Scr Mat Min Mat Min Exi Matter Collected 1266 | 310 168 77 609 102 . Remotely . | . . . . . . Salvage Created 1533 | 209 312 97 694 221 . Parts 90 | 13 16 4 38 19 . Haulers Intercepted 1 | . . . 1 . . Recyclers Shooed 4 | 1 . . 3 . . Parts Field Recycled . | . . . . . . Retrieved Matter . | . . . . . . Parts Self-Destructed . | . . . . . . Prevented . | . . . . . . Kills | -11 -10 -10 -9 -9 -9 ------- Run | Scr Mat Min Mat Min Exi Combat Hostiles Destroyed 53 | . 6 19 13 15 . Guns 15 | . 6 1 8 . . AOE 38 | . . 18 5 15 . Classes Destroyed 10 | 2 2 2 3 1 . Worker 2 | . . . 2 . . Tunneler 4 | 4 . . . . . Hauler 1 | . . . 1 . . Recycler 4 | 1 . . 3 . . Watcher 1 | . 1 . . . . Swarmer 15 | . . 3 5 7 . Grunt 17 | . 6 1 3 7 . Brawler 1 | . . . . 1 . Sentry 5 | . . . 5 . . Assembled 15 | . . 15 . . . Best Kill Streak 16 | 5 2 16 8 5 . Combat Bots Only 16 | . 2 16 5 5 . Max Kills in Single Turn 4 | 1 1 4 4 4 . Gunslinging . | . . . . . . Exploded 4 | . . 4 3 4 . Melee . | . . . . . . Uniques/NPCs Destroyed . | . . . . . . Combat | -11 -10 -10 -9 -9 -9 -------- Run | Scr Mat Min Mat Min Exi Damage Taken 1548 | . 228 314 834 172 . Core 340 | . 32 124 110 74 . Absorbed by Shields . | . . . . . . Core Remaining (%) 68 | 100 . 37 . . . Volleys Fired 105 | 10 16 20 42 17 . Largest 2 | 2 2 2 2 2 . Hottest 70 | 70 70 40 46 43 . Shots Fired 173 | 20 32 25 78 18 . Gun 136 | 20 32 10 72 2 . Cannon . | . . . . . . Launcher 37 | . . 15 6 16 . Special . | . . . . . . Kinetic 120 | 10 26 10 72 2 . Thermal 16 | 10 6 . . . . Explosive 37 | . . 15 6 16 . Electromagnetic . | . . . . . . Robot Hit Streak 13 | 4 13 8 7 7 . Robot Miss Streak 4 | 1 2 3 4 2 . Penetration Max . | . . . . . . Secondary Targets 3 | . 2 . 1 . . Max Gunslinging Chain 1 | . 1 . 1 . . Shots Hit Robots 104 | 14 24 12 47 7 . Core Hits 108 | 6 15 37 31 19 . Critical Hits 2 | . . . 2 . . Critical Kills . | . . . . . . Critical Parts Destroyed 2 | . . . 2 . . Melee Attacks . | . . . . . . Impact . | . . . . . . Slashing . | . . . . . . Piercing . | . . . . . . Sneak Attacks . | . . . . . . Combat Hostiles . | . . . . . . Follow-up Attacks . | . . . . . . Damage Inflicted 4096 | 176 290 1111 1275 1244 . Guns 1187 | 176 290 91 630 . . Cannons . | . . . . . . Explosions 2909 | . . 1020 645 1244 . Melee . | . . . . . . Ramming . | . . . . . . Kinetic 1038 | 76 241 91 630 . . Thermal 149 | 100 49 . . . . Explosive 2909 | . . 1020 645 1244 . Electromagnetic . | . . . . . . Impact . | . . . . . . Slashing . | . . . . . . Piercing . | . . . . . . Highest Corruption . | . . . . . . Average Corruption . | . . . . . . Corruption Purged . | . . . . . . Overload Shots . | . . . . . . Overflow Damage 62 | . . 36 18 8 . Projectiles . | . . . . . . Explosions 62 | . . 36 18 8 . Melee . | . . . . . . Knockbacks . | . . . . . . Impact . | . . . . . . Kinetic . | . . . . . . Secondary . | . . . . . . Self-Inflicted Damage 169 | . . 92 77 . . Shots 7 | . . 3 4 . . Rammed . | . . . . . . Targets Rammed . | . . . . . . Kicked . | . . . . . . Crushed . | . . . . . . Highest Temperature 105 | 45 105 25 11 . . Average Temperature 28 | 16 48 12 5 . . Received Heat Transfer 496 | . 132 118 198 48 . Siege Activations . | . . . . . . Robots Corrupted . | . . . . . . Combat Hostiles . | . . . . . . Parts Fried . | . . . . . . Impact Corruptions . | . . . . . . Robots Melted . | . . . . . . Combat Hostiles . | . . . . . . Parts Melted . | . . . . . . Heat Transferred 444 | 296 148 . . . . Parts Sabotaged . | . . . . . . Parts Stolen . | . . . . . . Parts Stripped . | . . . . . . Power Chain Reactions . | . . . . . . Missiles Intercepted . | . . . . . . Alert | -11 -10 -10 -9 -9 -9 ------- Run | Scr Mat Min Mat Min Exi Peak Influence 445 | 25 230 145 328 445 . Average Influence 159 | 9 65 96 167 309 . Maximum Alert Level 2 | . 1 . 1 2 . Low Security (%) 67 | 100 93 100 63 26 . Level 1 24 | . 6 . 36 40 . Level 2 7 | . . . . 32 . Level 3 . | . . . . . . Level 4 . | . . . . . . Level 5 . | . . . . . . High Security . | . . . . . . Max Security . | . . . . . . Squads Dispatched 5 | . 2 . 3 . . Investigation 2 | . 1 . 1 . . Extermination . | . . . . . . Reinforcement 3 | . 1 . 2 . . Assault . | . . . . . . Garrison . | . . . . . . Intercept . | . . . . . . Construction Impeded . | . . . . . . Haulers Reinforced . | . . . . . . Stealth | -11 -10 -10 -9 -9 -9 --------- Run | Scr Mat Min Mat Min Exi Distress Signals 3 | . 1 . 2 . . Communications Jammed . | . . . . . . Distress Signals . | . . . . . . Times Spotted 71 | . 13 20 24 14 . Peak Tracking Total 11 | . 4 9 11 4 . Tactical Retreats 6 | . . 1 5 . . Traps | -11 -10 -10 -9 -9 -9 ------- Run | Scr Mat Min Mat Min Exi Traps Triggered 1 | . . . 1 . . Indirectly . | . . . . . . Trap Hack Attempts . | . . . . . . Triggered . | . . . . . . Disarmed . | . . . . . . Reprogrammed 1 | . 1 . . . . Reused 1 | . 1 . . . . Traps Extracted . | . . . . . . Installed . | . . . . . . Triggered 1 | . 1 . . . . Machines | -11 -10 -10 -9 -9 -9 ---------- Run | Scr Mat Min Mat Min Exi Machines Disabled 4 | . . 2 2 . . Max in Single Turn 1 | . . 1 1 . . Machines Sabotaged . | . . . . . . Garrisons Compromised . | . . . . . . Overloaded Fab Kills . | . . . . . . Fab Network Shutdowns . | . . . . . . Hacking | -11 -10 -10 -9 -9 -9 --------- Run | Scr Mat Min Mat Min Exi Machines Accessed 6 | . 5 . . . 1 Terminals 5 | . 5 . . . . Fabricators . | . . . . . . Repair Stations . | . . . . . . Recycling Units . | . . . . . . Scanalyzers . | . . . . . . Garrison Access . | . . . . . . Total Hacks 29 | . 28 . . . 1 Successful 20 | . 19 . . . 1 Failed 9 | . 9 . . . . Catastrophic 1 | . 1 . . . . Database Lockouts . | . . . . . . Manual 24 | . 23 . . . 1 Terminals 28 | . 28 . . . . Fabricators . | . . . . . . Repair Stations . | . . . . . . Recycling Units . | . . . . . . Scanalyzers . | . . . . . . Garrison Access . | . . . . . . Terminal Hacks 15 | . 14 . . . 1 Record 1 | . 1 . . . . Prototype ID Bank 1 | . 1 . . . . Alert Level 1 | . 1 . . . . Unreport Threat 2 | . 2 . . . . Reprogram Traps 1 | . 1 . . . . Security Status 1 | . 1 . . . . Patrol Status 1 | . 1 . . . . Recall Reinforcements 1 | . 1 . . . . Hauler Manifests 1 | . 1 . . . . Zone Layout 4 | . 4 . . . . EX-Prototype ID Bank 1 | . . . . . 1 Fabricator Hacks . | . . . . . . Repair Station Hacks . | . . . . . . Recycling Unit Hacks . | . . . . . . Scanalyzer . | . . . . . . Garrison Access Hacks . | . . . . . . Unauthorized Hacks 5 | . 5 . . . . Terminals 5 | . 5 . . . . Track 1 | . 1 . . . . Botnet 3 | . 3 . . . . Operators 1 | . 1 . . . . Fabricators . | . . . . . . Repair Stations . | . . . . . . Recycling Units . | . . . . . . Scanalyzers . | . . . . . . Garrison Access . | . . . . . . Data Cores Recovered . | . . . . . . Used . | . . . . . . Hacking Detections 5 | . 5 . . . . Full Trace Events . | . . . . . . Feedback Events . | . . . . . . Feedback Blocked . | . . . . . . Robot Schematics Acquired . | . . . . . . Robots Built . | . . . . . . Matter . | . . . . . . Time . | . . . . . . Total Robot Build Rating . | . . . . . . Part Schematics Acquired . | . . . . . . Parts Built . | . . . . . . Matter . | . . . . . . Time . | . . . . . . Total Part Build Rating . | . . . . . . Parts Repaired . | . . . . . . Time . | . . . . . . Parts Recycled . | . . . . . . Recycled Matter . | . . . . . . Retrieved Matter . | . . . . . . Retrieved Components . | . . . . . . Parts Scanalyzed . | . . . . . . Part Schematics Acquired . | . . . . . . Parts Damaged . | . . . . . . Bothacking | -11 -10 -10 -9 -9 -9 ------------ Run | Scr Mat Min Mat Min Exi Used RIF Installer . | . . . . . . Robots Hacked . | . . . . . . Non-combat . | . . . . . . Combat . | . . . . . . Robot Hacks Applied . | . . . . . . Relay Couplers Released . | . . . . . . Robots Rewired . | . . . . . . Allies Hacked . | . . . . . . Hacks Repelled . | . . . . . . Allies | -11 -10 -10 -9 -9 -9 -------- Run | Scr Mat Min Mat Min Exi Total Allies 1 | . . . . 1 . Largest Group 1 | . . . . 1 1 Highest-Rated Group 31 | . . . . 31 31 Highest-Rated Ally 31 | . . . . 31 31 Total Orders . | . . . . . . Ally Attacks . | . . . . . . Total Damage . | . . . . . . Kills . | . . . . . . Allies Corrupted . | . . . . . . Allies Melted . | . . . . . . Intel | -11 -10 -10 -9 -9 -9 ------- Run | Scr Mat Min Mat Min Exi Robot Analysis Total . | . . . . . . Derelict Logs Recovered 1 | . . . . 1 . Drone Launches . | . . . . . . Drone Recoveries . | . . . . . . Exploration | -11 -10 -10 -9 -9 -9 ------------- Run | Scr Mat Min Mat Min Exi Turns Passed 2053 | 122 478 134 685 441 193 Spaces Moved 1606 | 75 431 76 418 408 198 Core 1 | 1 . . . . . Treads . | . . . . . . Legs . | . . . . . . Wheels 1605 | 74 431 76 418 408 198 Hover . | . . . . . . Flight . | . . . . . . Fastest Speed 50 | 50 80 100 90 95 95 Average Speed 94 | 84 90 100 98 95 95 Slowest Speed 100 | 90 100 100 100 95 95 Overloaded Moves . | . . . . . . Propulsion Burnouts . | . . . . . . Robots Hopped . | . . . . . . Cave-ins Triggered . | . . . . . . Exploration Rate (%) 43 | 4 76 14 33 77 58 Regions Visited 5 Branch Regions 3 Pre-discovered Areas 1 | . . . . 1 . Known Exits Taken . | . . . . . . Unknown Exits Taken 5 | 1 1 1 1 1 . Scrap Searched 2 | . . 1 . 1 . Spaces Dug 18 | . . . . 18 . Terrain Destroyed 262 | . . 111 42 109 . Melee . | . . . . . . Projectile . | . . . . . . AOE 262 | . . 111 42 109 . Actions | -11 -10 -10 -9 -9 -9 --------- Run | Scr Mat Min Mat Min Exi Total 1960 | 111 489 108 607 442 203 Wait 175 | 12 24 9 116 14 . Move 1601 | 74 430 75 417 407 198 Hop . | . . . . . . Pick Up 18 | 6 2 . 7 1 2 Fast Attach 13 | 5 4 . 4 . . Attach 11 | 2 1 2 5 1 . Detach 3 | 1 2 . . . . Swap 24 | 1 5 2 13 2 1 Drop 10 | . 5 . 3 . 2 Fire 105 | 10 16 20 42 17 . Melee . | . . . . . . Ram . | . . . . . . Kick . | . . . . . . Crush . | . . . . . . Escape Stasis . | . . . . . . Rewire . | . . . . . . Trap . | . . . . . . Miscellaneous . | . . . . . . Route ------- -11/Scrapyard -10/Materials (discovered 5 exits: [*Mat x3] / [*Min x2]) -10/Mines -9/Materials -9/Mines (discovered 3 exits: [*Mat x2] / *Exi) -9/Exiles History --------- Turn | Location | Event 5 | -11/Scrapyard | Discovered new exit (range 15) 123 | -11/Scrapyard | Entered Materials 219 | -10/Materials | Discovered new exit (range 4) 244 | -10/Materials | Discovered new exit (range 12) 308 | -10/Materials | Build established: Mutant 314 | -10/Materials | Discovered new exit (range 11) 433 | -10/Materials | Discovered new exit (range 10) 491 | -10/Materials | Discovered new exit (range 7) 601 | -10/Materials | Entered Mines 642 | -10/Mines | Assembled infested the area 699 | -10/Mines | Discovered new exit (range 9) 706 | -10/Mines | Core integrity fell below 50% 730 | -10/Mines | Destroyed 16 combat bots 735 | -10/Mines | Entered Materials 735 | -9/Materials | Evolved 2 slots: Utility x2 1078 | -9/Materials | Discovered new exit (range 14) 1161 | -9/Materials | Lost 4 parts (1p2n1w) 1420 | -9/Materials | Entered Mines 1634 | -9/Mines | Build established: Scavenger-Mutant 1676 | -9/Mines | Discovered new exit (range 9) 1831 | -9/Mines | Escorted by a lone wolf Derelict 1833 | -9/Mines | Discovered new exit (range 3) 1851 | -9/Mines | Deemed a non-threat by the Exiles lab entrance 1851 | -9/Mines | Discovered new exit (range 5) 1861 | -9/Mines | Entered Exiles 1861 | -9/Exiles | Accompanied by 1 ally 1887 | -9/Exiles | Met 8R-AWN 1903 | -9/Exiles | Met EX-HEX 1931 | -9/Exiles | Met EX-BIN 1945 | -9/Exiles | Aligned with FarCom system 1946 | -9/Exiles | Given EX-Vault access code 1970 | -9/Exiles | Opened EX-Vault 1977 | -9/Exiles | Found YOLO Cannon 1996 | -9/Exiles | Warned to stay clear of 0b10 Research branches 2010 | -9/Exiles | Exiles lab attacked by MAIN.C 2054 | -9/Exiles | Self-destructed Last Messages --------------- XL Autogun Array AWS/Autocannon Field Lobotomy Kit Longsword +1 Deploy-a-Sentry 01977_ Dropped Wheel. 01977_ Acquired YOLO Cannon. EX-BIN: Oh yeah, I'd suggest you stay away from the 0b10 Research branches, since the FarCom signals could be picked up there, but you're welcome to try if you really want to. And if we have to leave here due to unforeseen circumstances, don't worry the FarCom system will continue to maintain contact via our distributed network. EX-BIN: And don't even think about spreading that code around. We're gonna change it right after you leave. Most certainly not to something like 1234 which I did last time as a little joke and some thief managed to sneak in here and steal a few of HEX's prototypes. 02010_ EXILES: Incoming Unaware force detected on approach from Mines. Prepare for evacuation. 02045_ EXILES: Lab perimeter alert, evacuate immediately. Map ----- +----------------------------------------------------+ | ?????????????????????????????????????????????????? | | ?????????????????????????????????????????????????? | | ?????????????????????????????????????????????????? | | ?????????????????????????????????????????????????? | | ?????????????????????????????????????????????????? | | ?????????????????????????????????????????????????? | | ?????????????????????????????????????????????????? | | ?????????????????????????????????????????????????? | | ?????????????????????????????????????????????????? | | ?????????????????????????????????????????????????? | | ?????????????????????????????????????????????????? | | ??????????????????????????????#######????????????? | | ???????????????? ######???????#!!! "#????????????? | | ???????????????? #""#??????# "#????????????? | | ???????????????? ??????# "#????????????? | | ??????????????? #????## ""#????????????? | | ??????????????? #####" ""#????????????? | | ???????????????# ##" ""?????????????? | | ????????????????# #"" #??????????????" | | ???????????????????# #??????????????" | | ??????????????????????# ##?????????????" | | ??????????????????????### "#???????????? | | ????????????????########" ###???????????" | | ????????????????# !!""""" ##??????????# | | ????????????????#! "###"" ######???### | | ????????????????#! @ "#?##" """#####X# | | ????????????????#! ##??#" | | ????????????????# !""""""###???#"# | | ????????????????#########??????#### | | ??????????????????????????????????### | | ????????????????????????????????????### | | ??????????????????????????????????????## | | ???????????????????????????????????????## | | ????????????????????????????????????????##" | | ?????????????????????????????????????????#""" | | ?????????????????????????????????????????#" | | ????????????????????????????????????????#"" | | ????????????????????????????????????????#""" | | ????????????????????????????????????????""" | | ????????????????????????????????????????""" | | ?????????????????????????????????????????" | | ????????????????????????????????????????""" | | ????????????????????????????????????????"" | | ?????????????????????????????????????????"" | | ??????????????????????????????????????????""" | | ???????????????????????????????????????????? | | ???????????????????????????????????????????? | | ?????????????????????????????????????????????? | | ?????????????????????????????????????????????????? | | ?????????????????????????????????????????????????? | +----------------------------------------------------+ Best States ------------- Heat Dissipation 48 Energy Generation 12 Energy Capacity 265 Matter Stores 300 Matter Capacity 300 Sight Range 16 Terrain Scan Density 10 Evasion (%) 44 Item Schematics ----------------- None Robot Schematics ------------------ None Fabricated ------------ Nothing Alien Tech Used ----------------- None Achievements -------------- None Challenges ------------ None Game ------ Seed GreatFieldCore Manual? 0 Play Time 00:22:49 Cumulative 91.7 hours Start 2020.08.10 @ 20:09:41 End 2020.08.10 @ 20:35:02 Sessions 1 Manual Loads 0 Difficulty Rogue Special Mode None Game No. 101 Rogue 14 Adventurer 87 Explorer 0 Win Type - Total 3 Types 2/0/0/1/0/0/0 Lore% 47 Gallery% 62 Achievement% 53 Wizard Run 0 Options --------- ASCII 0 Keyboard 1 Movement Numpad Keybinds 0 Fullscreen 1 Font 18/Smallcaps Map View 76x50 Tactical HUD 1 Map Filters NONE Filters NONE Steam 1 RUN: 5ab909e4-28c2-46fb-b408-ca1148cec415